[Event "Early-Titled-Tuesday-Blitz-June-18-2024"]
[Site "Chess.com"]
[Date "2024.06.18"]
[Round "5"]
[White "pouya21"]
[Black "Crazy_girl99"]
[Result "1-0"]
[WhiteElo "2862"]
[BlackElo "2611"]
[TimeControl "180+1"]
[EndTime "8:57:29 PDT"]
[Termination "pouya21 won by resignation"]

1. d4 {[%clk 0:03:00.9]} 1... Nf6 {[%clk 0:02:52.6]} 2. c4 {[%clk 0:02:59.7]}
2... e6 {[%clk 0:02:52.6]} 3. Nc3 {[%clk 0:02:59.6]} 3... Bb4 {[%clk 0:02:52.5]}
4. e3 {[%clk 0:02:59.5]} 4... O-O {[%clk 0:02:52.2]} 5. Bd2 {[%clk 0:02:58.8]}
5... d5 {[%clk 0:02:51.6]} 6. cxd5 {[%clk 0:02:55.4]} 6... exd5 {[%clk
0:02:51.6]} 7. Bd3 {[%clk 0:02:54.3]} 7... c5 {[%clk 0:02:51.7]} 8. Nge2 {[%clk
0:02:40.6]} 8... Nc6 {[%clk 0:02:50.4]} 9. a3 {[%clk 0:02:39.5]} 9... c4 {[%clk
0:02:48.6]} 10. Bc2 {[%clk 0:02:37.7]} 10... Bd6 {[%clk 0:02:47.6]} 11. O-O
{[%clk 0:02:25.3]} 11... Re8 {[%clk 0:02:29]} 12. f3 {[%clk 0:02:21.8]} 12... a6
{[%clk 0:02:16.3]} 13. h3 {[%clk 0:01:58.6]} 13... Qc7 {[%clk 0:02:14.8]} 14.
Kh1 {[%clk 0:01:49.7]} 14... b5 {[%clk 0:01:49.3]} 15. e4 {[%clk 0:01:50.1]}
15... dxe4 {[%clk 0:01:26.9]} 16. fxe4 {[%clk 0:01:51]} 16... b4 {[%clk
0:01:26.9]} 17. axb4 {[%clk 0:01:46.8]} 17... Bxb4 {[%clk 0:01:20.1]} 18. e5
{[%clk 0:01:44]} 18... Nh5 {[%clk 0:01:11.6]} 19. Nd5 {[%clk 0:01:33.1]} 19...
Qb7 {[%clk 0:01:11.2]} 20. Be4 {[%clk 0:01:26.9]} 20... Bxd2 {[%clk 0:01:07.7]}
21. Qxd2 {[%clk 0:01:27.8]} 21... Be6 {[%clk 0:01:01.1]} 22. Qg5 {[%clk
0:01:08.7]} 22... Rad8 {[%clk 0:00:59.3]} 23. Qxh5 {[%clk 0:01:04.2]} 23... Bxd5
{[%clk 0:00:53.6]} 24. Qxh7+ {[%clk 0:01:03.5]} 24... Kf8 {[%clk 0:00:54.1]} 25.
Qh8+ {[%clk 0:00:55.8]} 25... Ke7 {[%clk 0:00:53.4]} 26. Qxg7 {[%clk 0:00:56.5]}
26... Rf8 {[%clk 0:00:40.9]} 27. Bxd5 {[%clk 0:00:38.6]} 27... Rxd5 {[%clk
0:00:41.8]} 28. e6 {[%clk 0:00:39.3]} 28... Ke8 {[%clk 0:00:29.6]} 29. Nf4
{[%clk 0:00:34.9]} 29... Rf5 {[%clk 0:00:28.1]} 30. d5 {[%clk 0:00:32.9]} 30...
Ne5 {[%clk 0:00:25.5]} 31. d6 {[%clk 0:00:30.1]} 31... Qb6 {[%clk 0:00:12]} 32.
d7+ {[%clk 0:00:28.8]} 32... Ke7 {[%clk 0:00:12.1]} 33. Nd5+ {[%clk 0:00:28.5]}
1-0

[Event "Early-Titled-Tuesday-Blitz-June-18-2024"]
[Site "Chess.com"]
[Date "2024.06.18"]
[Round "5"]
[White "Iball95"]
[Black "harkerchess"]
[Result "1-0"]
[WhiteElo "2816"]
[BlackElo "2355"]
[TimeControl "180+1"]
[EndTime "8:57:31 PDT"]
[Termination "Iball95 won by checkmate"]

1. e4 {[%clk 0:03:00.9]} 1... e5 {[%clk 0:02:59.9]} 2. Nf3 {[%clk 0:03:00.4]}
2... Nc6 {[%clk 0:03:00.2]} 3. Nc3 {[%clk 0:03:00.9]} 3... Nf6 {[%clk
0:03:00.1]} 4. Bb5 {[%clk 0:03:01.3]} 4... Bb4 {[%clk 0:02:58.5]} 5. Nd5 {[%clk
0:03:00.9]} 5... Nxd5 {[%clk 0:02:16.2]} 6. exd5 {[%clk 0:03:01.8]} 6... e4
{[%clk 0:02:13.5]} 7. dxc6 {[%clk 0:03:01.1]} 7... dxc6 {[%clk 0:02:11.1]} 8.
Bc4 {[%clk 0:03:00.3]} 8... exf3 {[%clk 0:02:09.2]} 9. Qxf3 {[%clk 0:03:01.2]}
9... Qe7+ {[%clk 0:02:06.5]} 10. Qe3 {[%clk 0:03:00.3]} 10... Qxe3+ {[%clk
0:02:00.6]} 11. fxe3 {[%clk 0:03:01.2]} 11... Bd7 {[%clk 0:01:58.5]} 12. O-O
{[%clk 0:03:01.4]} 12... f6 {[%clk 0:01:54.7]} 13. a3 {[%clk 0:02:46.2]} 13...
Bd6 {[%clk 0:01:53.5]} 14. d3 {[%clk 0:02:38.1]} 14... O-O-O {[%clk 0:01:52]}
15. e4 {[%clk 0:02:38.5]} 15... Be5 {[%clk 0:01:49.1]} 16. Rb1 {[%clk
0:02:37.7]} 16... Bg4 {[%clk 0:01:46.1]} 17. Be3 {[%clk 0:02:36.9]} 17... Bh5
{[%clk 0:01:36.6]} 18. a4 {[%clk 0:02:29.6]} 18... Kb8 {[%clk 0:01:36.2]} 19. b4
{[%clk 0:02:28.5]} 19... Rd7 {[%clk 0:01:04.8]} 20. b5 {[%clk 0:02:22.6]} 20...
cxb5 {[%clk 0:00:55.5]} 21. Rxb5 {[%clk 0:02:23.5]} 21... c6 {[%clk 0:00:52.3]}
22. Rb3 {[%clk 0:02:20.2]} 22... Re8 {[%clk 0:00:41.7]} 23. a5 {[%clk
0:02:16.5]} 23... Ree7 {[%clk 0:00:36.9]} 24. Rfb1 {[%clk 0:02:12.1]} 24... Bg6
{[%clk 0:00:17.3]} 25. Bc5 {[%clk 0:02:11]} 25... Re8 {[%clk 0:00:16.1]} 26. Ba6
{[%clk 0:02:07.8]} 26... b5 {[%clk 0:00:12.1]} 27. axb6 {[%clk 0:02:06.8]} 27...
axb6 {[%clk 0:00:11.8]} 28. Rxb6+ {[%clk 0:02:07.7]} 28... Kc7 {[%clk 0:00:12]}
29. Bc4 {[%clk 0:01:45.5]} 29... Ra8 {[%clk 0:00:10.6]} 30. Be6 {[%clk
0:01:25.2]} 30... Bd4+ {[%clk 0:00:07.9]} 31. Bxd4 {[%clk 0:01:25.7]} 31... Rxd4
{[%clk 0:00:08.8]} 32. Rb7+ {[%clk 0:01:25.6]} 32... Kd6 {[%clk 0:00:09.2]} 33.
Bb3 {[%clk 0:01:20.6]} 33... Ke5 {[%clk 0:00:08]} 34. Re7+ {[%clk 0:01:19.4]}
34... Kf4 {[%clk 0:00:07.9]} 35. Rxg7 {[%clk 0:01:18.8]} 35... Ke3 {[%clk
0:00:07.6]} 36. Rf1 {[%clk 0:01:16.4]} 36... c5 {[%clk 0:00:07.3]} 37. h4 {[%clk
0:01:11]} 37... Kd2 {[%clk 0:00:07.1]} 38. Rxf6 {[%clk 0:01:09.6]} 38... Ra1+
{[%clk 0:00:05.8]} 39. Rf1 {[%clk 0:01:08]} 39... Ra6 {[%clk 0:00:05.7]} 40. g4
{[%clk 0:01:06.8]} 40... c4 {[%clk 0:00:05.4]} 41. Bxc4 {[%clk 0:01:04.7]} 41...
Rc6 {[%clk 0:00:05.6]} 42. Rf2+ {[%clk 0:01:00.6]} 42... Kc1 {[%clk 0:00:05.4]}
43. Ra7 {[%clk 0:01:00]} 43... Bxe4 {[%clk 0:00:03.8]} 44. c3 {[%clk 0:00:59.2]}
44... Rdd6 {[%clk 0:00:02.4]} 45. Ra1# {[%clk 0:00:59.4]} 1-0

[Event "Early-Titled-Tuesday-Blitz-June-18-2024"]
[Site "Chess.com"]
[Date "2024.06.18"]
[Round "5"]
[White "Gyulamiryan-koryun"]
[Black "ChessSwole"]
[Result "0-1"]
[WhiteElo "1605"]
[BlackElo "2703"]
[TimeControl "180+1"]
[EndTime "8:57:32 PDT"]
[Termination "ChessSwole won on time"]

1. d4 {[%clk 0:02:59.2]} 1... Nf6 {[%clk 0:02:55.7]} 2. c4 {[%clk 0:02:59.1]}
2... g6 {[%clk 0:02:56]} 3. Nc3 {[%clk 0:02:58.8]} 3... d5 {[%clk 0:02:56.4]} 4.
h4 {[%clk 0:02:57.2]} 4... Bg7 {[%clk 0:02:53.5]} 5. h5 {[%clk 0:02:55.9]} 5...
Nxh5 {[%clk 0:02:53.8]} 6. cxd5 {[%clk 0:02:52.2]} 6... c5 {[%clk 0:02:44.8]} 7.
dxc5 {[%clk 0:02:42.9]} 7... Nd7 {[%clk 0:02:36.1]} 8. Nf3 {[%clk 0:02:13.7]}
8... Nxc5 {[%clk 0:02:24.8]} 9. e4 {[%clk 0:02:03.9]} 9... O-O {[%clk
0:02:24.4]} 10. Bd3 {[%clk 0:01:57.6]} 10... Bg4 {[%clk 0:02:21.3]} 11. Be3
{[%clk 0:01:52.6]} 11... Qa5 {[%clk 0:02:20.1]} 12. Qd2 {[%clk 0:01:45.9]} 12...
Nb3 {[%clk 0:02:17.4]} 13. axb3 {[%clk 0:01:31.6]} 13... Qxa1+ {[%clk
0:02:18.3]} 14. Nd1 {[%clk 0:01:31.7]} 14... Rac8 {[%clk 0:02:06.4]} 15. O-O
{[%clk 0:01:25.3]} 15... e6 {[%clk 0:01:51.4]} 16. d6 {[%clk 0:01:23]} 16...
Rfd8 {[%clk 0:01:50]} 17. Qb4 {[%clk 0:01:09.3]} 17... Bxf3 {[%clk 0:01:29.4]}
18. gxf3 {[%clk 0:01:08.2]} 18... Be5 {[%clk 0:01:30]} 19. Qxb7 {[%clk
0:00:57.8]} 19... Bxd6 {[%clk 0:01:27.3]} 20. Qxa7 {[%clk 0:00:45.9]} 20... Qxa7
{[%clk 0:01:22.9]} 21. Bxa7 {[%clk 0:00:46.1]} 21... Nf4 {[%clk 0:01:23.6]} 22.
Bc4 {[%clk 0:00:42.2]} 22... Bc5 {[%clk 0:01:16.1]} 23. Bxc5 {[%clk 0:00:38.2]}
23... Rxc5 {[%clk 0:01:17]} 24. Ne3 {[%clk 0:00:30.4]} 24... Rd2 {[%clk
0:01:15.4]} 25. Rd1 {[%clk 0:00:24.7]} 25... Rxb2 {[%clk 0:01:08.9]} 26. Ng4
{[%clk 0:00:19.6]} 26... Kg7 {[%clk 0:01:06.5]} 27. Rd7 {[%clk 0:00:16]} 27...
h5 {[%clk 0:01:03.5]} 28. Ne3 {[%clk 0:00:13.1]} 28... Nh3+ {[%clk 0:01:02.8]}
29. Kg2 {[%clk 0:00:08]} 29... Nxf2 {[%clk 0:01:03.3]} 30. Kg3 {[%clk
0:00:07.2]} 30... g5 {[%clk 0:00:59.6]} 31. Bxe6 {[%clk 0:00:05.3]} 31... h4+
{[%clk 0:00:55.6]} 32. Kg2 {[%clk 0:00:03.6]} 32... Nxe4+ {[%clk 0:00:51.3]} 33.
Kg1 {[%clk 0:00:03.8]} 33... Rc1+ {[%clk 0:00:50.9]} 34. Nf1 {[%clk 0:00:03.9]}
34... Ng3 {[%clk 0:00:44.2]} 35. Rxf7+ {[%clk 0:00:03.2]} 35... Kg6 {[%clk
0:00:44.8]} 0-1

[Event "Early-Titled-Tuesday-Blitz-June-18-2024"]
[Site "Chess.com"]
[Date "2024.06.18"]
[Round "5"]
[White "Boundless_Strike"]
[Black "betta2004"]
[Result "1-0"]
[WhiteElo "2660"]
[BlackElo "2478"]
[TimeControl "180+1"]
[EndTime "8:57:34 PDT"]
[Termination "Boundless_Strike won by resignation"]

1. d4 {[%clk 0:02:32.9]} 1... Nf6 {[%clk 0:02:53.2]} 2. Nc3 {[%clk 0:02:32.4]}
2... e6 {[%clk 0:02:54.1]} 3. e4 {[%clk 0:02:32.1]} 3... Bb4 {[%clk 0:02:54.2]}
4. e5 {[%clk 0:02:26.8]} 4... Ne4 {[%clk 0:02:51.2]} 5. Qg4 {[%clk 0:02:26.6]}
5... f5 {[%clk 0:02:19.6]} 6. Qxg7 {[%clk 0:02:17.2]} 6... Rf8 {[%clk
0:02:14.5]} 7. a3 {[%clk 0:01:37.4]} 7... Bxc3+ {[%clk 0:02:09.2]} 8. bxc3
{[%clk 0:01:37.2]} 8... Qe7 {[%clk 0:01:40.1]} 9. Qxe7+ {[%clk 0:01:24.4]} 9...
Kxe7 {[%clk 0:01:41]} 10. Ne2 {[%clk 0:01:23.9]} 10... Rg8 {[%clk 0:01:17.6]}
11. h4 {[%clk 0:01:17.3]} 11... d6 {[%clk 0:01:09.4]} 12. f3 {[%clk 0:01:12.3]}
12... Ng3 {[%clk 0:01:09.3]} 13. Nxg3 {[%clk 0:01:12.5]} 13... Rxg3 {[%clk
0:01:10.2]} 14. Bg5+ {[%clk 0:01:11.8]} 14... Kf7 {[%clk 0:01:10.1]} 15. Kf2
{[%clk 0:01:01.2]} 15... f4 {[%clk 0:01:10.1]} 16. Re1 {[%clk 0:00:49.9]} 16...
dxe5 {[%clk 0:01:04.3]} 17. dxe5 {[%clk 0:00:48.2]} 17... h6 {[%clk 0:00:51.3]}
18. Bxh6 {[%clk 0:00:44.9]} 18... Rg8 {[%clk 0:00:35.9]} 19. Bxf4 {[%clk
0:00:43.5]} 19... Nc6 {[%clk 0:00:36]} 20. Bd3 {[%clk 0:00:41.2]} 20... Ne7
{[%clk 0:00:35.5]} 21. g4 {[%clk 0:00:38.8]} 21... b6 {[%clk 0:00:33.2]} 22. Bg5
{[%clk 0:00:33.8]} 22... Nd5 {[%clk 0:00:31.1]} 23. c4 {[%clk 0:00:33.3]} 23...
Nc3 {[%clk 0:00:29.9]} 24. Bd2 {[%clk 0:00:30.3]} 24... Na4 {[%clk 0:00:29.8]}
25. h5 {[%clk 0:00:22.9]} 25... Bb7 {[%clk 0:00:28.6]} 26. h6 {[%clk 0:00:23.3]}
26... Nc5 {[%clk 0:00:24.9]} 27. h7 {[%clk 0:00:23.3]} 27... Rgf8 {[%clk
0:00:24.1]} 28. Bh6 {[%clk 0:00:20.5]} 28... Rh8 {[%clk 0:00:24.4]} 29. Be3
{[%clk 0:00:20.3]} 29... Nd7 {[%clk 0:00:21]} 30. Rh5 {[%clk 0:00:17.1]} 30...
Raf8 {[%clk 0:00:20.1]} 31. Kg3 {[%clk 0:00:15.3]} 31... Kg7 {[%clk 0:00:20.3]}
32. Bh6+ {[%clk 0:00:15]} 1-0

[Event "Early-Titled-Tuesday-Blitz-June-18-2024"]
[Site "Chess.com"]
[Date "2024.06.18"]
[Round "5"]
[White "JoliyRoger"]
[Black "YurasovMat-2012"]
[Result "0-1"]
[WhiteElo "2450"]
[BlackElo "2628"]
[TimeControl "180+1"]
[EndTime "8:57:35 PDT"]
[Termination "YurasovMat-2012 won on time"]

1. d4 {[%clk 0:02:34.9]} 1... d5 {[%clk 0:02:56.9]} 2. c4 {[%clk 0:02:32.7]}
2... c6 {[%clk 0:02:56.9]} 3. Nc3 {[%clk 0:02:31.6]} 3... Nf6 {[%clk 0:02:56]}
4. Nf3 {[%clk 0:02:31.4]} 4... dxc4 {[%clk 0:02:56.3]} 5. a4 {[%clk 0:02:27.9]}
5... Bf5 {[%clk 0:02:55.1]} 6. e3 {[%clk 0:02:28.1]} 6... e6 {[%clk 0:02:54.9]}
7. Bxc4 {[%clk 0:02:28.5]} 7... Bb4 {[%clk 0:02:55]} 8. O-O {[%clk 0:02:29.1]}
8... O-O {[%clk 0:02:53.8]} 9. Qb3 {[%clk 0:02:24]} 9... a5 {[%clk 0:02:49.9]}
10. Na2 {[%clk 0:02:23.3]} 10... Na6 {[%clk 0:02:49.3]} 11. Bd2 {[%clk
0:01:45.8]} 11... Bxd2 {[%clk 0:02:43]} 12. Nxd2 {[%clk 0:01:46.1]} 12... Qe7
{[%clk 0:02:41.5]} 13. f3 {[%clk 0:01:29.9]} 13... Rfd8 {[%clk 0:02:34.6]} 14.
Rfd1 {[%clk 0:01:09.1]} 14... Bg6 {[%clk 0:02:31]} 15. Nf1 {[%clk 0:01:06.4]}
15... Nd5 {[%clk 0:02:25.6]} 16. Bxa6 {[%clk 0:01:01.4]} 16... Rxa6 {[%clk
0:02:24.5]} 17. e4 {[%clk 0:01:01.8]} 17... Rb6 {[%clk 0:02:18.6]} 18. Qc4
{[%clk 0:00:47.4]} 18... Nb4 {[%clk 0:02:16.1]} 19. Ne3 {[%clk 0:00:28.8]} 19...
Nxa2 {[%clk 0:02:13.7]} 20. Rxa2 {[%clk 0:00:28.4]} 20... Rb4 {[%clk 0:02:13.2]}
21. Qc3 {[%clk 0:00:28.8]} 21... f6 {[%clk 0:02:06.8]} 22. b3 {[%clk 0:00:27.8]}
22... Bf7 {[%clk 0:02:06.2]} 23. Rad2 {[%clk 0:00:28.4]} 23... Qc7 {[%clk
0:02:00.3]} 24. d5 {[%clk 0:00:21.1]} 24... exd5 {[%clk 0:01:52.2]} 25. exd5
{[%clk 0:00:17]} 25... Qb6 {[%clk 0:01:51]} 26. dxc6 {[%clk 0:00:15.6]} 26...
Rxd2 {[%clk 0:01:27.6]} 27. Qxd2 {[%clk 0:00:15.9]} 27... Qxc6 {[%clk
0:01:20.9]} 28. Qd8+ {[%clk 0:00:14.2]} 28... Qe8 {[%clk 0:01:20.9]} 29. Qxe8+
{[%clk 0:00:10.4]} 29... Bxe8 {[%clk 0:01:21.8]} 30. Nc4 {[%clk 0:00:09.8]}
30... Rxb3 {[%clk 0:01:15.2]} 31. Nxa5 {[%clk 0:00:10]} 31... Rb4 {[%clk
0:01:13.3]} 32. Rd5 {[%clk 0:00:08]} 32... b6 {[%clk 0:01:11.4]} 33. Nb7 {[%clk
0:00:07.6]} 33... Bxa4 {[%clk 0:01:08.3]} 34. Rd8+ {[%clk 0:00:06]} 34... Kf7
{[%clk 0:01:07.4]} 35. Rb8 {[%clk 0:00:06.5]} 35... Ke7 {[%clk 0:01:06.3]} 36.
Nd8 {[%clk 0:00:05.6]} 36... Rb1+ {[%clk 0:01:01.5]} 37. Kf2 {[%clk 0:00:04.7]}
37... Rb2+ {[%clk 0:01:02.1]} 38. Kg3 {[%clk 0:00:05.2]} 38... Bb5 {[%clk
0:00:58.2]} 39. Rxb6 {[%clk 0:00:02.4]} 39... Kxd8 {[%clk 0:00:57.8]} 40. Rb7
{[%clk 0:00:02.8]} 40... g5 {[%clk 0:00:55.2]} 41. h4 {[%clk 0:00:01.6]} 41...
Bf1 {[%clk 0:00:54.6]} 0-1

[Event "Early-Titled-Tuesday-Blitz-June-18-2024"]
[Site "Chess.com"]
[Date "2024.06.18"]
[Round "5"]
[White "salomez"]
[Black "Ati1517"]
[Result "0-1"]
[WhiteElo "2345"]
[BlackElo "2030"]
[TimeControl "180+1"]
[EndTime "8:57:37 PDT"]
[Termination "Ati1517 won on time"]

1. e4 {[%clk 0:03:00.9]} 1... c5 {[%clk 0:02:58.8]} 2. Nf3 {[%clk 0:03:00.9]}
2... d6 {[%clk 0:02:58.8]} 3. d4 {[%clk 0:03:01.4]} 3... cxd4 {[%clk 0:02:59.7]}
4. Nxd4 {[%clk 0:03:02.1]} 4... Nf6 {[%clk 0:02:58.3]} 5. Nc3 {[%clk 0:03:02.6]}
5... a6 {[%clk 0:02:55.1]} 6. Bc4 {[%clk 0:03:02.8]} 6... e6 {[%clk 0:02:54.6]}
7. Bb3 {[%clk 0:03:03.3]} 7... b5 {[%clk 0:02:53.2]} 8. O-O {[%clk 0:03:03.2]}
8... Be7 {[%clk 0:02:52.9]} 9. Qf3 {[%clk 0:03:03.5]} 9... Qc7 {[%clk
0:02:51.5]} 10. Qg3 {[%clk 0:03:03.1]} 10... O-O {[%clk 0:02:51.4]} 11. Bh6
{[%clk 0:03:01]} 11... Ne8 {[%clk 0:02:51.5]} 12. Rfe1 {[%clk 0:02:57]} 12...
Bd7 {[%clk 0:02:45.7]} 13. Rad1 {[%clk 0:02:47.9]} 13... Nc6 {[%clk 0:02:42.6]}
14. Nxc6 {[%clk 0:02:45.2]} 14... Bxc6 {[%clk 0:02:42]} 15. Kh1 {[%clk
0:02:31.3]} 15... Kh8 {[%clk 0:02:39.9]} 16. Bg5 {[%clk 0:02:30.6]} 16... Bxg5
{[%clk 0:02:35.2]} 17. Qxg5 {[%clk 0:02:31.5]} 17... Nf6 {[%clk 0:02:20.9]} 18.
a3 {[%clk 0:02:00.3]} 18... h6 {[%clk 0:02:18.4]} 19. Qf4 {[%clk 0:01:57.8]}
19... Rad8 {[%clk 0:02:15.7]} 20. Rd3 {[%clk 0:01:57]} 20... Qe7 {[%clk
0:02:11.4]} 21. Rh3 {[%clk 0:01:48.6]} 21... e5 {[%clk 0:01:40.8]} 22. Qd2
{[%clk 0:01:19.2]} 22... Qb7 {[%clk 0:01:03.5]} 23. f3 {[%clk 0:01:17.2]} 23...
b4 {[%clk 0:01:00.8]} 24. axb4 {[%clk 0:01:10.4]} 24... Qxb4 {[%clk 0:01:01.7]}
25. g4 {[%clk 0:01:02.9]} 25... d5 {[%clk 0:01:00.8]} 26. g5 {[%clk 0:01:03]}
26... dxe4 {[%clk 0:01:00.8]} 27. Qf2 {[%clk 0:00:30.4]} 27... Ng4 {[%clk
0:00:48.8]} 28. Qg3 {[%clk 0:00:07.3]} 28... exf3 {[%clk 0:00:45.7]} 29. Nd5
{[%clk 0:00:01.2]} 29... f2 {[%clk 0:00:26.1]} 0-1

[Event "Early-Titled-Tuesday-Blitz-June-18-2024"]
[Site "Chess.com"]
[Date "2024.06.18"]
[Round "5"]
[White "Smiechu"]
[Black "Roland_Garros_2024"]
[Result "1-0"]
[WhiteElo "2356"]
[BlackElo "2225"]
[TimeControl "180+1"]
[EndTime "8:57:38 PDT"]
[Termination "Smiechu won on time"]

1. e4 {[%clk 0:02:55.9]} 1... c5 {[%clk 0:03:00.3]} 2. Nf3 {[%clk 0:02:55]} 2...
d6 {[%clk 0:03:00.9]} 3. d4 {[%clk 0:02:53.9]} 3... cxd4 {[%clk 0:03:01.8]} 4.
Nxd4 {[%clk 0:02:54.5]} 4... Nf6 {[%clk 0:03:02.3]} 5. Nc3 {[%clk 0:02:55.1]}
5... a6 {[%clk 0:03:02.9]} 6. Be3 {[%clk 0:02:55.6]} 6... e5 {[%clk 0:03:03.2]}
7. Nb3 {[%clk 0:02:54.7]} 7... Be6 {[%clk 0:03:03.8]} 8. Qd2 {[%clk 0:02:55.1]}
8... Be7 {[%clk 0:03:03.6]} 9. O-O-O {[%clk 0:02:55.4]} 9... Ng4 {[%clk
0:03:01]} 10. g3 {[%clk 0:02:55.3]} 10... Nxe3 {[%clk 0:02:57.4]} 11. Qxe3
{[%clk 0:02:56.2]} 11... Nd7 {[%clk 0:02:50.1]} 12. Kb1 {[%clk 0:02:55.7]} 12...
Rc8 {[%clk 0:02:49.8]} 13. f4 {[%clk 0:02:55.3]} 13... b5 {[%clk 0:02:35.5]} 14.
f5 {[%clk 0:02:54.3]} 14... Bc4 {[%clk 0:02:35.1]} 15. h4 {[%clk 0:02:50.9]}
15... Nb6 {[%clk 0:02:22.6]} 16. g4 {[%clk 0:02:26.7]} 16... Qc7 {[%clk
0:01:56]} 17. Bxc4 {[%clk 0:01:51.7]} 17... Nxc4 {[%clk 0:01:55.9]} 18. Qe1
{[%clk 0:01:48.2]} 18... Na3+ {[%clk 0:01:30.1]} 19. bxa3 {[%clk 0:01:43.5]}
19... Qxc3 {[%clk 0:01:30.7]} 20. Qe2 {[%clk 0:01:42.2]} 20... Qc4 {[%clk
0:01:14.1]} 21. Rd3 {[%clk 0:01:21.2]} 21... O-O {[%clk 0:01:01.1]} 22. g5
{[%clk 0:01:21]} 22... Rfd8 {[%clk 0:00:47.3]} 23. f6 {[%clk 0:01:19.2]} 23...
Bf8 {[%clk 0:00:44.5]} 24. fxg7 {[%clk 0:01:15.1]} 24... Bxg7 {[%clk 0:00:45.4]}
25. h5 {[%clk 0:01:15.5]} 25... d5 {[%clk 0:00:42.3]} 26. Rhd1 {[%clk
0:01:13.7]} 26... d4 {[%clk 0:00:31.8]} 27. R1d2 {[%clk 0:00:53.7]} 27... Qc7
{[%clk 0:00:20.4]} 28. Qg4 {[%clk 0:00:47.9]} 28... a5 {[%clk 0:00:19.1]} 29. g6
{[%clk 0:00:46.2]} 29... fxg6 {[%clk 0:00:15.5]} 30. hxg6 {[%clk 0:00:46.2]}
30... h6 {[%clk 0:00:14.6]} 31. Qe6+ {[%clk 0:00:41.5]} 31... Kh8 {[%clk
0:00:13.7]} 32. Rh3 {[%clk 0:00:40.7]} 32... a4 {[%clk 0:00:11.6]} 33. Rdh2
{[%clk 0:00:38]} 33... Qxc2+ {[%clk 0:00:03]} 34. Rxc2 {[%clk 0:00:37]} 34...
Rxc2 {[%clk 0:00:02.7]} 35. Kxc2 {[%clk 0:00:37]} 35... axb3+ {[%clk 0:00:03.6]}
36. axb3 {[%clk 0:00:36.9]} 1-0

[Event "Early-Titled-Tuesday-Blitz-June-18-2024"]
[Site "Chess.com"]
[Date "2024.06.18"]
[Round "5"]
[White "SuperPower2011"]
[Black "Rsnr"]
[Result "0-1"]
[WhiteElo "2718"]
[BlackElo "2911"]
[TimeControl "180+1"]
[EndTime "8:57:39 PDT"]
[Termination "Rsnr won on time"]

1. d4 {[%clk 0:02:29.5]} 1... d5 {[%clk 0:02:59.5]} 2. c4 {[%clk 0:02:27.7]}
2... c6 {[%clk 0:02:59.6]} 3. cxd5 {[%clk 0:02:27.4]} 3... cxd5 {[%clk
0:03:00.5]} 4. Nc3 {[%clk 0:02:28.1]} 4... Nf6 {[%clk 0:03:00.6]} 5. Bf4 {[%clk
0:02:28.8]} 5... Qb6 {[%clk 0:03:01.1]} 6. e3 {[%clk 0:02:28.4]} 6... Qxb2
{[%clk 0:03:01.3]} 7. Bb5+ {[%clk 0:02:17.8]} 7... Bd7 {[%clk 0:03:01.4]} 8.
Bxd7+ {[%clk 0:02:16.8]} 8... Nbxd7 {[%clk 0:03:02.3]} 9. Nge2 {[%clk
0:02:16.8]} 9... Qa3 {[%clk 0:03:02.8]} 10. O-O {[%clk 0:02:15.4]} 10... a6
{[%clk 0:03:02.7]} 11. Rb1 {[%clk 0:01:34.2]} 11... b5 {[%clk 0:03:02.4]} 12.
Rxb5 {[%clk 0:01:16.5]} 12... axb5 {[%clk 0:03:03.3]} 13. Nxb5 {[%clk
0:01:16.7]} 13... Qa5 {[%clk 0:03:03.6]} 14. Nc7+ {[%clk 0:01:17.3]} 14... Kd8
{[%clk 0:03:03.7]} 15. Nxa8 {[%clk 0:01:18]} 15... Qxa8 {[%clk 0:03:04.3]} 16.
Qc2 {[%clk 0:01:18.7]} 16... Ne8 {[%clk 0:01:16.8]} 17. Nc3 {[%clk 0:00:56]}
17... Qc6 {[%clk 0:01:16.5]} 18. Rc1 {[%clk 0:00:47]} 18... e6 {[%clk
0:01:14.3]} 19. Qb2 {[%clk 0:00:46.3]} 19... Bd6 {[%clk 0:00:51.7]} 20. Ne4
{[%clk 0:00:36]} 20... Qa6 {[%clk 0:00:51.7]} 21. Bxd6 {[%clk 0:00:08.1]} 21...
Nxd6 {[%clk 0:00:52.6]} 22. Nc5 {[%clk 0:00:08.8]} 22... Qb6 {[%clk 0:00:29.3]}
23. Qc3 {[%clk 0:00:06]} 23... Ke7 {[%clk 0:00:23.3]} 24. Nxd7 {[%clk
0:00:01.2]} 24... Kxd7 {[%clk 0:00:24.2]} 25. Qd3 {[%clk 0:00:01.6]} 25... g6
{[%clk 0:00:20.5]} 26. h4 {[%clk 0:00:01.3]} 26... Rc8 {[%clk 0:00:20.5]} 27.
Rb1 {[%clk 0:00:01.4]} 27... Qc6 {[%clk 0:00:21.2]} 0-1

[Event "Early-Titled-Tuesday-Blitz-June-18-2024"]
[Site "Chess.com"]
[Date "2024.06.18"]
[Round "5"]
[White "FXDon77"]
[Black "Barmen_EV"]
[Result "1-0"]
[WhiteElo "2879"]
[BlackElo "2537"]
[TimeControl "180+1"]
[EndTime "8:57:39 PDT"]
[Termination "FXDon77 won on time"]

1. e4 {[%clk 0:02:40.3]} 1... e6 {[%clk 0:02:59]} 2. d3 {[%clk 0:02:39.4]} 2...
c5 {[%clk 0:02:57.1]} 3. g3 {[%clk 0:02:37.1]} 3... Nc6 {[%clk 0:02:56.2]} 4.
Bg2 {[%clk 0:02:37.3]} 4... d6 {[%clk 0:02:56.7]} 5. f4 {[%clk 0:02:36.5]} 5...
Be7 {[%clk 0:02:56.1]} 6. Nf3 {[%clk 0:02:37.1]} 6... Nf6 {[%clk 0:02:56.6]} 7.
Be3 {[%clk 0:02:36.9]} 7... O-O {[%clk 0:02:56.2]} 8. h3 {[%clk 0:02:37.4]} 8...
b6 {[%clk 0:02:45.9]} 9. O-O {[%clk 0:02:35.8]} 9... Bb7 {[%clk 0:02:45.5]} 10.
Nbd2 {[%clk 0:02:35.1]} 10... Ne8 {[%clk 0:02:15.3]} 11. c3 {[%clk 0:02:33.9]}
11... d5 {[%clk 0:01:56.3]} 12. e5 {[%clk 0:02:31.2]} 12... d4 {[%clk
0:01:44.3]} 13. cxd4 {[%clk 0:02:27.9]} 13... cxd4 {[%clk 0:01:45.2]} 14. Bf2
{[%clk 0:02:27.4]} 14... Rb8 {[%clk 0:01:29]} 15. Nb3 {[%clk 0:02:19.4]} 15...
Nc7 {[%clk 0:01:19.8]} 16. Nbxd4 {[%clk 0:02:06.8]} 16... Nxd4 {[%clk
0:01:19.9]} 17. Nxd4 {[%clk 0:02:07.3]} 17... Bxg2 {[%clk 0:01:18.8]} 18. Kxg2
{[%clk 0:02:08.2]} 18... Rc8 {[%clk 0:00:53.7]} 19. Nc6 {[%clk 0:02:03.7]} 19...
Qd7 {[%clk 0:00:52.8]} 20. Rc1 {[%clk 0:01:51.2]} 20... Nd5 {[%clk 0:00:50.1]}
21. Nd4 {[%clk 0:01:48.1]} 21... Bc5 {[%clk 0:00:39.3]} 22. Nb3 {[%clk
0:01:40.8]} 22... Bxf2 {[%clk 0:00:34.8]} 23. Kxf2 {[%clk 0:01:40.6]} 23... Qa4
{[%clk 0:00:34.9]} 24. Rxc8 {[%clk 0:01:24.5]} 24... Rxc8 {[%clk 0:00:33.9]} 25.
a3 {[%clk 0:01:25.1]} 25... Nxf4 {[%clk 0:00:18.4]} 26. gxf4 {[%clk 0:01:17.7]}
26... Qxf4+ {[%clk 0:00:19.3]} 27. Kg2 {[%clk 0:01:18]} 27... Qxe5 {[%clk
0:00:14.7]} 28. Rf2 {[%clk 0:01:14.9]} 28... f6 {[%clk 0:00:09.2]} 29. d4 {[%clk
0:01:10.9]} 29... Qd5+ {[%clk 0:00:05.1]} 30. Qf3 {[%clk 0:01:10.4]} 30... Qg5+
{[%clk 0:00:05.6]} 31. Qg3 {[%clk 0:01:08.9]} 31... Qd5+ {[%clk 0:00:04.8]} 32.
Kh2 {[%clk 0:01:09.1]} 32... h5 {[%clk 0:00:02.4]} 33. Rg2 {[%clk 0:00:50.1]}
33... Rc7 {[%clk 0:00:02.1]} 34. Qxc7 {[%clk 0:00:49.7]} 34... g5 {[%clk
0:00:02]} 35. Nd2 {[%clk 0:00:47.9]} 1-0